bitfinex-derivatives/quotes_BTCF0:USTF0_20220103
["timestamp","ask_amount","ask_price","bid_price","bid_amount"]
[1641245992909,0.00753329,46128.0,46125.0,0.03391321]
[1641245993110,0.00753329,46128.0,46126.0,0.01224022]
[1641245993512,0.00753329,46128.0,46127.0,0.45525543]
[1641245993711,0.02,46136.0,46127.0,0.9208821]
[1641245994413,0.02,46136.0,46134.0,0.02166882]
[1641245994811,0.00651301,46135.0,46134.0,0.02166882]
[1641245995012,0.00651301,46135.0,46134.0,0.116]
[1641245995613,0.00651301,46135.0,46134.0,0.12823909]
[1641245995813,0.00651301,46135.0,46134.0,0.26857476]
[1641245996414,0.00651301,46135.0,46134.0,0.15257476]
[1641245997015,0.00651301,46135.0,46134.0,0.26857476]
[1641245997617,0.00651301,46135.0,46134.0,0.59423576]
[1641245998217,0.00651301,46135.0,46134.0,0.47823576]
[1641245999017,0.00651301,46135.0,46134.0,0.61223576]
[1641246000223,0.00651301,46135.0,46134.0,0.47823576]
[1641246001023,0.00651301,46135.0,46134.0,0.61223576]
[1641246001225,0.86216732,46135.0,46134.0,0.61223576]
[1641246002424,0.86216732,46135.0,46134.0,0.47823576]
[1641246003024,0.86216732,46135.0,46134.0,0.61223576]
[1641246003226,0.00651301,46135.0,46134.0,0.61223576]
[1641246003426,0.00651301,46135.0,46134.0,0.63390451]
[1641246004327,0.00651301,46135.0,46134.0,0.17424351]
[1641246004927,0.00651301,46135.0,46134.0,0.30624351]
[1641246005129,0.86216732,46135.0,46134.0,0.30624351]
[1641246006428,0.86216732,46135.0,46134.0,0.17424351]
[1641246006829,0.86216732,46135.0,46134.0,0.15257476]
[1641246007032,0.86216732,46135.0,46134.0,0.28457476]
[1641246007430,0.86216732,46135.0,46127.0,0.14033567]
[1641246007431,0.00651301,46135.0,46131.0,1.40719283]
[1641246007630,0.18,46132.0,46131.0,1.40719283]
[1641246008031,0.18,46132.0,46124.0,1.47946215]
[1641246008232,0.18,46128.0,46124.0,1.47946215]
[1641246008631,0.18,46128.0,46122.0,0.0216745]
[1641246008632,0.18,46128.0,46125.0,0.01224128]
[1641246008833,0.00651531,46127.0,46125.0,0.01224128]
[1641246009032,0.00651531,46127.0,46118.0,1.61979782]
[1641246009033,0.00651531,46127.0,46124.0,0.11]
[1641246009434,0.00651531,46127.0,46126.0,0.01224128]
[1641246009636,0.00651531,46127.0,46125.0,0.01224128]
[1641246009834,0.00651531,46127.0,46126.0,0.01224128]
[1641246010235,0.00651531,46127.0,46125.0,0.01224128]
[1641246010436,0.00651531,46127.0,46126.0,0.01224128]
[1641246010837,0.00651531,46128.0,46119.0,0.01224128]
[1641246011037,0.127,46127.0,46126.0,0.125]
[1641246011238,0.13351531,46127.0,46126.0,0.13724128]
[1641246011638,0.127,46127.0,46126.0,0.13724128]
[1641246012839,0.009794,46131.0,46126.0,0.01224128]
[1641246013039,0.114,46127.0,46126.0,0.14124128]
[1641246013240,0.114,46127.0,46126.0,0.129]
[1641246013440,0.114,46127.0,46126.0,0.14124128]
[1641246014341,0.00816636,46127.0,46126.0,1.42896349]
[1641246014844,0.18,46129.0,46126.0,1.42896349]
[1641246015043,0.13,46127.0,46126.0,1.55796349]
[1641246015246,0.13,46127.0,46126.0,1.56739472]
[1641246015445,0.13,46127.0,46126.0,0.15067251]
[1641246016445,0.32033567,46133.0,46126.0,0.02167251]
[1641246016845,0.00816578,46132.0,46126.0,0.02167251]
[1641246017045,0.18816578,46132.0,46126.0,0.14767251]
[1641246017245,0.00816578,46132.0,46126.0,0.14767251]
[1641246017659,0.00816578,46131.0,46127.0,0.323116]
[1641246017857,0.00816578,46131.0,46129.0,0.14033567]
[1641246018156,0.00816578,46132.0,46130.0,0.02167065]
[1641246018356,0.18,46134.0,46130.0,0.02167065]
[1641246018757,0.00816467,46131.0,46130.0,0.02167065]
[1641246018958,0.00816467,46131.0,46130.0,0.14967065]
[1641246019156,0.309,46134.0,46130.0,0.14967065]
[1641246019157,0.00816467,46133.0,46130.0,0.14967065]
[1641246019357,0.00816467,46131.0,46130.0,0.14967065]
[1641246019558,0.309,46134.0,46130.0,0.14967065]
[1641246019559,0.00816467,46132.0,46130.0,0.14967065]
[1641246019960,0.00816467,46131.0,46130.0,0.14967065]
[1641246020161,0.00816467,46131.0,46130.0,0.128]
[1641246020361,0.26524,46131.0,46124.0,1.43839577]
[1641246020661,0.00816467,46130.0,46123.0,1.41672221]
[1641246020861,0.00816467,46130.0,46123.0,1.43839625]
[1641246021061,0.00816467,46130.0,46124.0,0.127]
[1641246022362,0.00816467,46130.0,46123.0,0.02167404]
[1641246022965,0.13916467,46130.0,46123.0,0.15067404]
[1641246023364,0.00816467,46129.0,46123.0,0.15067404]
[1641246024465,0.00816467,46129.0,46123.0,0.02167404]
[1641246024668,0.00816467,46129.0,46123.0,0.20167404]
[1641246024866,0.00816467,46130.0,46123.0,0.02167404]
[1641246025071,0.12,46129.0,46123.0,0.15367404]
[1641246025667,0.12,46129.0,46126.0,0.09624378]
[1641246025867,0.12,46129.0,46126.0,0.27624378]
[1641246026068,0.12,46129.0,46127.0,0.320608]
[1641246026466,0.02,46136.0,46127.0,0.320608]
[1641246026868,0.008169,46135.0,46127.0,0.320608]
[1641246027070,0.008169,46135.0,46127.0,0.446608]
[1641246027469,0.008169,46135.0,46127.0,0.126]
[1641246028470,0.008169,46135.0,46126.0,0.27624378]
[1641246029069,0.008169,46135.0,46128.0,1.41672221]
[1641246029070,1.01582331,46135.0,46128.0,1.41672221]
[1641246029670,0.008169,46134.0,46128.0,1.41672221]
[1641246030070,0.008169,46134.0,46128.0,1.55705788]
[1641246030273,0.008169,46134.0,46129.0,0.0122391]
[1641246030970,0.161169,46134.0,46129.0,0.1642391]
[1641246031472,0.008169,46133.0,46130.0,0.0122391]
[1641246032673,0.188169,46133.0,46130.0,0.0122391]
[1641246032875,0.18,46133.0,46129.0,0.0122391]
[1641246033074,0.18,46133.0,46128.0,1.55705788]
[1641246033075,0.008169,46132.0,46131.0,0.0122391]
[1641246033274,0.008169,46132.0,46130.0,0.1652391]
[1641246033473,0.008169,46132.0,46131.0,0.0122391]
[1641246033675,0.075369,46132.0,46131.0,0.0122391]
[1641246034976,0.075369,46132.0,46129.0,0.0122391]
[1641246035177,0.228369,46132.0,46131.0,0.1642391]
[1641246035379,0.4002,46132.0,46131.0,0.152]
[1641246035577,0.4002,46132.0,46131.0,0.1642391]
[1641246035777,0.4002,46132.0,46131.0,0.152]
[1641246035977,0.4002,46132.0,46131.0,0.16424039]
[1641246036378,0.0672,46132.0,46131.0,0.01224039]
[1641246036579,1.21805999,46133.0,46131.0,0.01224039]
[1641246036780,1.21805999,46133.0,46130.0,0.08198]
[1641246036979,1.21805999,46133.0,46132.0,0.01224039]
[1641246037179,1.36905999,46133.0,46132.0,0.01224039]
[1641246037380,1.36905999,46133.0,46131.0,0.16224039]
[1641246037681,0.151,46133.0,46132.0,0.01224039]
[1641246038481,0.85684444,46134.0,46132.0,0.01224039]
[1641246038882,1.03684444,46134.0,46131.0,0.01224039]
[1641246039082,1.18884444,46134.0,46132.0,0.15]
[1641246039282,1.00884444,46134.0,46132.0,0.15]
[1641246039684,0.18,46133.0,46132.0,0.15]
[1641246040281,1.00884444,46134.0,46132.0,0.15]
[1641246040488,1.03684444,46134.0,46127.0,1.55705788]
[1641246040882,0.85684444,46134.0,46127.0,1.55705788]
[1641246041182,1.01084444,46134.0,46127.0,1.70605788]
[1641246041985,0.85684444,46133.0,46127.0,0.28933567]
[1641246042183,0.18,46129.0,46127.0,0.28933567]
[1641246042385,0.18,46129.0,46127.0,0.14033567]
[1641246043086,0.15,46129.0,46127.0,0.29533567]
[1641246045191,0.146,46129.0,46127.0,0.29533567]
[1641246045493,1.23805999,46136.0,46131.0,0.34121325]
[1641246045695,0.02167054,46148.0,46135.0,0.181]
[1641246045891,1.79817054,46151.0,46143.0,0.18]
[1641246046091,0.18,46153.0,46144.0,0.14033567]
[1641246046293,1.44329163,46155.0,46144.0,0.14033567]
[1641246046496,1.44329163,46155.0,46144.0,0.46259067]
[1641246046896,1.44329163,46155.0,46144.0,0.4842554]
[1641246047097,1.44329163,46155.0,46144.0,0.6422554]
[1641246047297,0.14033567,46155.0,46144.0,0.6422554]
[1641246047495,0.14033567,46159.0,46144.0,0.6422554]
[1641246047696,0.14033567,46159.0,46147.0,0.37857913]
[1641246047995,0.14033567,46159.0,46149.0,0.14033567]
[1641246048396,0.18,46154.0,46149.0,0.14033567]
[1641246049298,0.14033567,46159.0,46149.0,0.29833567]
[1641246049896,0.14033567,46159.0,46149.0,0.36418567]
[1641246050398,0.00815732,46158.0,46150.0,0.326717]
[1641246050597,0.00815732,46158.0,46149.0,0.36418567]
[1641246050999,0.00815732,46158.0,46149.0,0.20618567]
[1641246051210,0.00815732,46158.0,46149.0,0.35618567]
[1641246052299,0.00815732,46158.0,46150.0,0.18]
[1641246052700,0.00815732,46158.0,46150.0,0.506923]
[1641246053099,0.00815732,46158.0,46150.0,0.487923]
[1641246053500,0.00815732,46158.0,46150.0,0.161]
[1641246054104,1.23161094,46158.0,46150.0,0.161]
[1641246054503,0.00815732,46157.0,46149.0,0.14033567]
[1641246054703,0.85642355,46155.0,46149.0,0.14033567]
[1641246054903,0.85642355,46155.0,46150.0,0.01223462]
[1641246055102,0.00815732,46154.0,46150.0,0.01223462]
[1641246056104,0.85642355,46153.0,46150.0,0.01223462]
[1641246056502,0.00815732,46152.0,46150.0,0.01223462]
[1641246056704,0.00815732,46152.0,46149.0,0.14033567]
[1641246056905,0.85642355,46151.0,46149.0,0.14033567]
[1641246057105,0.85642355,46151.0,46150.0,0.159]
[1641246057306,0.85642355,46151.0,46150.0,0.17123508]
[1641246057519,0.85642355,46151.0,46150.0,0.17223508]
[1641246057720,0.85642355,46152.0,46150.0,0.17223508]
[1641246057920,0.85642355,46152.0,46150.0,0.17123508]
[1641246058324,0.85642355,46152.0,46151.0,0.01223508]
[1641246058924,0.85642355,46152.0,46150.0,0.01223508]
[1641246059124,0.85642355,46152.0,46151.0,0.18723508]
[1641246059524,1.03642355,46152.0,46151.0,0.18723508]
[1641246059723,0.85642355,46152.0,46151.0,0.175]
[1641246060324,0.85642355,46152.0,46151.0,0.1872346]
[1641246060526,0.85642355,46152.0,46151.0,0.0122346]
[1641246060725,0.06909,46158.0,46151.0,0.0122346]
[1641246060726,0.85642355,46153.0,46151.0,0.0122346]
[1641246060925,0.85642355,46153.0,46150.0,0.0122346]
[1641246061128,0.85642355,46153.0,46151.0,0.175]
[1641246061527,0.85642355,46152.0,46151.0,0.1872348]
[1641246061728,0.85642355,46152.0,46151.0,0.175]
[1641246061927,0.85642355,46152.0,46151.0,0.18723471]
[1641246062530,0.85642355,46152.0,46151.0,0.01223471]
[1641246062731,0.85642355,46152.0,46151.0,0.03389619]
[1641246062930,0.85642355,46152.0,46151.0,0.02166148]
[1641246063131,0.85642355,46152.0,46151.0,0.19766148]
[1641246063332,0.85642355,46155.0,46151.0,0.38989619]
[1641246063531,0.85642355,46155.0,46154.0,0.02166002]
[1641246064133,0.85642355,46155.0,46154.0,0.03389473]
[1641246064732,0.85642355,46155.0,46154.0,0.02166002]
[1641246065234,0.85642355,46155.0,46154.0,0.19666002]
[1641246067137,0.85642355,46155.0,46154.0,0.19466002]
[1641246067538,0.85642355,46155.0,46154.0,0.20689426]
[1641246068540,0.85642355,46155.0,46154.0,0.03389426]
[1641246068739,0.85642355,46155.0,46154.0,0.02166002]
[1641246069142,0.85642355,46155.0,46154.0,0.19466002]
[1641246069739,1.22345362,46157.0,46154.0,0.19466002]
[1641246070540,1.22345362,46157.0,46154.0,0.02166002]
[1641246070940,1.22345362,46157.0,46149.0,0.14033567]
[1641246071142,1.22345362,46157.0,46154.0,0.171]
[1641246072240,0.00816305,46156.0,46154.0,0.171]
[1641246072542,1.25491569,46155.0,46145.0,1.41672221]
[1641246072740,0.18,46146.0,46145.0,1.41672221]
[1641246073141,0.189794,46146.0,46145.0,0.118]
[1641246073341,0.21962875,46146.0,46143.0,1.41672221]
[1641246073541,0.02167338,46144.0,46141.0,1e-08]
[1641246073741,0.18,46142.0,46136.0,1.47946215]
[1641246073942,0.18,46137.0,46136.0,1.47946215]
[1641246074141,0.32033567,46137.0,46136.0,1.47946215]
[1641246074344,0.14033567,46137.0,46136.0,1.47946215]
[1641246074543,0.32849872,46137.0,46136.0,1.47946215]
[1641246074941,0.32849872,46137.0,46135.0,0.13770019]
[1641246075141,0.18,46136.0,46135.0,0.13770019]
[1641246075340,0.18816305,46136.0,46135.0,0.13770019]
[1641246075941,0.18816305,46136.0,46126.0,1.47946215]
[1641246076141,0.18816305,46136.0,46124.0,0.14033567]
[1641246076142,0.18,46132.0,46124.0,0.14033567]
[1641246076342,0.18,46133.0,46124.0,0.14033567]
[1641246076541,0.00816305,46131.0,46124.0,0.14033567]
[1641246076741,0.00816305,46132.0,46124.0,0.14033567]
[1641246076943,0.00816305,46130.0,46124.0,0.14033567]
[1641246077145,0.00816305,46130.0,46124.0,0.27533567]
[1641246077341,0.13516305,46131.0,46124.0,0.27533567]
[1641246077743,0.00816305,46130.0,46124.0,0.27533567]
[1641246078343,0.00816305,46130.0,46124.0,0.14033567]
[1641246079044,0.00816305,46131.0,46124.0,0.14033567]
[1641246079243,0.139,46130.0,46124.0,0.28533567]
[1641246079445,0.139,46130.0,46125.0,1.42234064]
[1641246079646,0.00816305,46129.0,46125.0,1.42234064]
[1641246080945,0.00816305,46131.0,46125.0,1.42234064]
[1641246081146,0.00816305,46128.0,46125.0,1.58234064]
[1641246081344,0.157,46129.0,46125.0,1.58234064]
[1641246081745,0.00816305,46127.0,46125.0,1.58234064]
[1641246081946,0.00816305,46128.0,46125.0,1.58234064]
[1641246082145,0.00816305,46126.0,46125.0,1.58234064]
[1641246082346,0.157,46129.0,46125.0,0.16]
[1641246082347,0.00816305,46127.0,46125.0,0.16]
[1641246082545,0.00816305,46126.0,46124.0,1.56267631]
[1641246082746,0.00816305,46126.0,46125.0,0.18]
[1641246082947,1.22417076,46133.0,46125.0,0.2764332]
[1641246083146,1.22417076,46133.0,46132.0,0.18]
[1641246083347,1.22417076,46133.0,46132.0,2.49739063]
[1641246083747,0.86927076,46133.0,46132.0,2.51905891]
[1641246084149,0.87743727,46133.0,46132.0,2.51905891]
[1641246084548,0.00816651,46133.0,46132.0,2.51905891]
[1641246084748,0.00816651,46133.0,46132.0,2.6567607]
[1641246084948,0.00816651,46136.0,46132.0,2.6567607]
[1641246085148,0.00816651,46133.0,46132.0,2.8317607]
[1641246085548,0.00816651,46135.0,46132.0,2.8317607]
[1641246085749,0.00816651,46133.0,46132.0,4.25153015]
[1641246085950,0.00816651,46134.0,46132.0,4.25153015]
[1641246086248,0.14033567,46142.0,46132.0,4.25153015]
[1641246086249,0.00816651,46133.0,46132.0,4.25153015]
[1641246086450,0.14033567,46142.0,46132.0,2.6567607]
[1641246086650,0.00816668,46133.0,46132.0,2.6567607]
[1641246086851,0.00816668,46133.0,46132.0,0.15937007]
[1641246087053,0.00816668,46136.0,46132.0,0.15937007]
[1641246087250,0.00816668,46133.0,46132.0,0.33137007]
[1641246087453,0.00816668,46135.0,46132.0,0.33137007]
[1641246087652,0.8568623,46138.0,46133.0,0.18]
[1641246087853,0.0081666,46134.0,46133.0,0.31770179]
[1641246088052,0.0081666,46136.0,46133.0,0.31770179]
[1641246088254,0.0081666,46134.0,46133.0,0.31770179]
[1641246088454,0.0081666,46134.0,46133.0,0.31870179]
[1641246088667,0.8568623,46139.0,46134.0,0.4335167]
[1641246088861,0.14033567,46150.0,46138.0,0.181]
[1641246089061,0.14033567,46150.0,46146.0,0.18]
[1641246089359,0.14033567,46150.0,46148.0,0.02166282]
[1641246089563,0.14033567,46150.0,46148.0,0.10402282]
[1641246089959,0.00595997,46149.0,46148.0,0.10402282]
[1641246091172,0.07395997,46149.0,46148.0,0.28402282]
[1641246092573,0.00595997,46149.0,46148.0,0.10402282]
[1641246093173,0.11195997,46149.0,46148.0,0.27602282]
[1641246094176,0.11195997,46149.0,46148.0,0.25436]
[1641246094577,0.00595997,46149.0,46148.0,0.10402277]
[1641246094975,0.00595997,46149.0,46148.0,0.08236]
[1641246095177,0.16495997,46149.0,46148.0,0.174]
[1641246096876,0.16495997,46149.0,46147.0,0.02166311]
[1641246096877,0.00595997,46149.0,46147.0,0.02166311]
[1641246097182,0.15795997,46149.0,46148.0,0.174]
[1641246098579,0.00595997,46149.0,46147.0,0.20166311]
[1641246099379,0.16395997,46149.0,46147.0,0.19566311]
[1641246099782,0.00595997,46148.0,46147.0,0.19566311]
[1641246099980,0.00595997,46148.0,46147.0,0.174]
[1641246100381,0.00595997,46148.0,46147.0,0.19566201]
[1641246100785,0.00595997,46148.0,46146.0,0.18]
[1641246101082,0.00595997,46149.0,46147.0,0.02166201]
[1641246101282,0.165,46148.0,46147.0,0.176]
[1641246102584,0.165,46148.0,46144.0,1.41976945]
[1641246102781,0.14033567,46150.0,46144.0,1.41976945]
[1641246103182,0.14033567,46150.0,46145.0,0.01223627]
[1641246103384,0.31733567,46150.0,46145.0,0.01223627]
[1641246104083,1.17394767,46150.0,46145.0,0.01223627]
[1641246104284,1.17394767,46150.0,46149.0,0.02166201]
[1641246104482,1.17394767,46150.0,46145.0,0.01223627]
[1641246104684,0.99694767,46150.0,46149.0,0.01223627]
[1641246104886,0.99694767,46150.0,46146.0,0.01223627]
[1641246105083,0.99694767,46150.0,46147.0,0.18]
[1641246105284,1.033612,46150.0,46149.0,0.2038977]
[1641246106383,1.033612,46150.0,46149.0,0.5280797]
[1641246106584,0.856612,46150.0,46149.0,0.49941537]
[1641246106785,0.856612,46150.0,46149.0,0.17523337]
[1641246107284,0.856612,46154.0,46149.0,0.35923337]
[1641246107485,0.856612,46154.0,46149.0,0.35823337]
[1641246107685,0.856612,46154.0,46150.0,0.01223627]
[1641246107883,0.856612,46154.0,46150.0,0.19223627]
[1641246108484,0.856612,46154.0,46151.0,0.01223627]
[1641246109087,0.856612,46154.0,46151.0,0.09902627]
[1641246109287,0.183,46154.0,46153.0,0.18]
[1641246109686,0.183,46154.0,46153.0,0.19223627]
[1641246109887,1.2e-05,46155.0,46153.0,0.21389454]
[1641246110089,2.08022522,46157.0,46153.0,0.53322854]
[1641246110289,0.85644276,46157.0,46154.0,0.01223627]
[1641246110487,0.85644276,46157.0,46156.0,0.34199166]
[1641246110688,0.85644276,46157.0,46156.0,0.32033567]
[1641246110889,0.85644276,46157.0,46156.0,0.33562894]
[1641246111088,0.85644276,46157.0,46156.0,0.35728444]
[1641246111287,1.22378246,46160.0,46156.0,0.54528444]
[1641246111490,1.22378246,46164.0,46156.0,0.54528444]
[1641246111688,1.22378246,46164.0,46157.0,0.01223627]
[1641246112693,1.22378246,46163.0,46157.0,0.01223627]
[1641246113289,1.22378246,46163.0,46157.0,0.20023627]
[1641246113688,1.22378246,46163.0,46158.0,0.01223627]
[1641246113888,1.22378246,46163.0,46158.0,0.23946984]
[1641246114089,1.22378246,46163.0,46161.0,0.18]
[1641246114289,1.36411813,46162.0,46161.0,0.18]
[1641246114488,1.36411813,46162.0,46161.0,0.01223627]
[1641246114789,1.36411813,46162.0,46160.0,0.18]
[1641246114989,0.14033567,46162.0,46161.0,0.01223627]
[1641246115689,0.14033567,46162.0,46160.0,0.187]
[1641246115890,0.14033567,46162.0,46161.0,0.01223627]
[1641246116690,0.1462915,46162.0,46161.0,0.01223627]
[1641246117390,0.1462915,46162.0,46161.0,0.187]
[1641246117793,0.1462915,46162.0,46161.0,0.19923627]
[1641246117991,0.1462915,46162.0,46161.0,0.187]
[1641246118691,0.1462915,46162.0,46158.0,0.021658]
[1641246118891,0.2302915,46162.0,46158.0,0.021658]
[1641246119090,0.00595583,46161.0,46156.0,0.14033567]
[1641246119292,0.00595583,46161.0,46159.0,0.01223381]
[1641246119491,0.00595583,46161.0,46158.0,0.207658]
[1641246119992,0.00595583,46161.0,46159.0,0.01223392]
[1641246121494,0.00595583,46161.0,46159.0,0.20423392]
[1641246121894,0.00595583,46161.0,46159.0,0.192]
[1641246122695,0.00595583,46161.0,46158.0,0.021658]
[1641246123195,0.00595583,46161.0,46159.0,0.01223369]
[1641246124195,0.00595583,46161.0,46158.0,0.215658]
[1641246124695,0.00595583,46161.0,46158.0,0.021658]
[1641246125096,0.00595583,46161.0,46159.0,0.01223364]
[1641246125297,0.00595583,46161.0,46158.0,0.021658]
[1641246125499,0.00595583,46161.0,46158.0,0.216658]
[1641246126798,0.00595583,46161.0,46158.0,0.021658]
[1641246127499,0.00595583,46161.0,46158.0,0.215658]
[1641246128104,0.00595583,46161.0,46159.0,0.01223382]
[1641246128501,0.18,46160.0,46159.0,0.01223382]
[1641246128705,0.18,46160.0,46149.0,0.16199785]
[1641246128902,0.18,46155.0,46149.0,0.14033567]
[1641246129102,0.009794,46154.0,46150.0,0.01223511]
[1641246129304,0.01574983,46154.0,46150.0,0.01223511]
[1641246129605,0.00595583,46153.0,46150.0,0.01223511]
[1641246131505,0.19295583,46153.0,46150.0,0.12023511]
[1641246131908,0.00595583,46152.0,46151.0,0.01223511]
[1641246132105,0.09781583,46152.0,46151.0,0.01223511]
[1641246133317,0.09781583,46152.0,46150.0,0.01223511]
[1641246133507,0.29081583,46152.0,46151.0,0.01223511]
[1641246133707,0.46486,46152.0,46151.0,0.01223511]
[1641246133906,0.46486,46152.0,46143.0,0.14033567]
[1641246134407,0.46486,46152.0,46144.0,0.01223681]
[1641246134607,0.27186,46152.0,46144.0,0.01223681]
[1641246134807,0.18,46151.0,46144.0,0.01223681]
[1641246135209,0.85666047,46147.0,46144.0,0.01223681]
[1641246135408,0.85666047,46147.0,46144.0,0.12023681]
[1641246135812,0.85666047,46147.0,46145.0,0.01223681]
[1641246137111,0.85666047,46147.0,46144.0,0.01223681]
[1641246137512,0.96366047,46147.0,46146.0,0.01223681]
[1641246137713,0.96366047,46147.0,46145.0,0.19223681]
[1641246137913,0.107,46147.0,46146.0,0.01223681]
[1641246139012,1.22380068,46148.0,46146.0,0.01223681]
[1641246139213,1.22380068,46148.0,46144.0,0.01223681]
[1641246139416,0.108,46147.0,46146.0,0.18]
[1641246139815,0.108,46147.0,46146.0,0.19223681]
[1641246140635,1.22380068,46148.0,46146.0,0.01223681]
[1641246141037,1.22380068,46148.0,46144.0,0.01223681]
[1641246141436,1.31580068,46148.0,46147.0,0.01223681]
[1641246141638,1.31580068,46148.0,46146.0,0.175]
[1641246141836,1.31580068,46148.0,46147.0,0.01223681]
[1641246142836,1.22380068,46148.0,46147.0,0.01223681]
[1641246143037,1.22380068,46148.0,46144.0,0.01223681]
[1641246143238,1.22380068,46148.0,46147.0,0.01223681]
[1641246143438,1.25180068,46148.0,46147.0,0.175]
[1641246143741,1.25180068,46148.0,46147.0,0.18723681]
[1641246144840,1.22380068,46148.0,46147.0,0.01223681]
[1641246145240,0.18,46150.0,46144.0,0.01223681]
[1641246145441,0.032,46148.0,46147.0,0.18723681]
[1641246145641,0.032,46148.0,46147.0,0.175]
[1641246146042,0.032,46148.0,46147.0,0.18723681]
[1641246146741,0.18,46150.0,46147.0,0.01223681]
[1641246147141,0.18,46150.0,46144.0,0.01223681]
[1641246147341,0.18,46151.0,46148.0,0.01223681]
[1641246147541,0.18,46151.0,46143.0,0.14033567]
[1641246147542,0.127,46150.0,46147.0,0.053]
[1641246147742,0.127,46150.0,46149.0,0.01223681]
[1641246147941,0.127,46150.0,46148.0,0.01223681]
[1641246148142,0.127,46150.0,46149.0,0.01223681]
[1641246148440,0.127,46150.0,46147.0,0.053]
[1641246148441,0.127,46150.0,46148.0,0.01223681]
[1641246148841,0.009794,46154.0,46148.0,0.01223681]
[1641246149447,0.0059642,46149.0,46148.0,0.037]
[1641246149842,0.0059642,46153.0,46148.0,0.037]
[1641246150245,0.0059642,46149.0,46148.0,0.037]
[1641246150742,0.1859642,46149.0,46143.0,0.21875567]
[1641246150943,0.06,46149.0,46143.0,0.14033567]
[1641246151143,0.0059642,46148.0,46143.0,0.14033567]
[1641246151545,0.0059642,46148.0,46143.0,0.29833567]
[1641246152743,0.0059642,46148.0,46143.0,0.14033567]
[1641246153544,0.1629642,46148.0,46143.0,0.31733567]
[1641246154047,0.0059642,46147.0,46143.0,0.31733567]
[1641246154645,0.0059642,46147.0,46143.0,0.14033567]
[1641246155248,0.0059642,46148.0,46143.0,0.14033567]
[1641246155448,0.149,46147.0,46143.0,0.32233567]
[1641246155645,0.0059642,46146.0,46143.0,0.32233567]
[1641246156846,0.0059642,46146.0,46143.0,0.14033567]
[1641246157449,0.13,46146.0,46143.0,0.32633567]
[1641246157649,0.0059642,46145.0,46143.0,0.32633567]
[1641246157848,0.1957582,46145.0,46143.0,0.32633567]
[1641246158249,0.0059642,46144.0,46135.0,0.13767067]
[1641246158452,0.12,46136.0,46135.0,0.13767067]
[1641246158650,0.25768,46136.0,46135.0,0.13767067]
[1641246158849,0.25768,46136.0,46134.0,0.14033567]
[1641246159050,0.2636442,46136.0,46134.0,0.14033567]
[1641246159252,0.0059642,46135.0,46134.0,0.14033567]
[1641246160551,0.187,46136.0,46134.0,0.14033567]
[1641246161451,0.188,46136.0,46134.0,0.14033567]
[1641246162854,0.14033567,46141.0,46134.0,0.14033567]
[1641246163054,0.14033567,46141.0,46134.0,0.22965567]
[1641246163554,0.00596441,46140.0,46134.0,0.22965567]
[1641246164755,0.00596441,46140.0,46135.0,0.01223779]
[1641246165558,0.19596441,46140.0,46135.0,0.01223779]
[1641246166160,0.00596441,46139.0,46135.0,0.01223779]
[1641246167362,0.18,46137.0,46135.0,0.01223779]
[1641246167762,0.00596441,46136.0,46135.0,0.01223779]
[1641246169569,0.19196441,46136.0,46135.0,0.01223779]
[1641246172969,0.00596441,46136.0,46135.0,0.01223779]
[1641246173571,0.19396441,46136.0,46135.0,0.01223779]
[1641246175582,0.38296441,46136.0,46135.0,0.01223779]
[1641246177387,0.00596441,46136.0,46135.0,0.01223779]
[1641246177585,0.19696441,46136.0,46135.0,0.01223779]
[1641246178785,0.00596441,46136.0,46135.0,0.01223779]
[1641246179486,0.19496441,46136.0,46135.0,0.01223779]
[1641246180387,0.25496441,46136.0,46135.0,0.01223779]
[1641246180585,0.37496441,46136.0,46135.0,0.01223779]
[1641246180786,0.19496441,46136.0,46135.0,0.01223779]
[1641246180986,0.00596441,46136.0,46135.0,0.01223779]
[1641246181187,0.18596441,46136.0,46135.0,0.01223779]
[1641246181587,0.19496441,46136.0,46135.0,0.01223779]
[1641246181990,0.37496441,46136.0,46135.0,0.01223779]
[1641246182197,0.48214324,46136.0,46135.0,0.01223779]
[1641246182391,0.48214324,46136.0,46120.0,0.43364718]
[1641246182392,0.50381982,46136.0,46120.0,0.43364718]
[1641246182594,0.50381982,46136.0,46118.0,1.8159]
[1641246182595,0.18,46121.0,46119.0,1.8313532]
[1641246182791,0.007351,46120.0,46119.0,1.8313532]
[1641246182990,0.007351,46120.0,46119.0,1.69365248]
[1641246183193,0.31070871,46120.0,46119.0,1.69365248]
[1641246183392,1.45070871,46120.0,46111.0,0.02]
[1641246183592,0.20169314,46112.0,46111.0,0.02]
[1641246183793,0.20169314,46112.0,46100.0,1.80080696]
[1641246183993,0.18,46101.0,46100.0,1.80080696]
[1641246184293,0.250091,46101.0,46100.0,1.80080696]
[1641246184493,0.25771551,46101.0,46100.0,1.55808515]
[1641246184694,0.07771551,46101.0,46100.0,1.55808515]
[1641246184894,0.07036451,46101.0,46100.0,1.55808515]
[1641246185295,0.21070018,46101.0,46100.0,1.55808515]
[1641246185496,0.60439546,46101.0,46091.0,0.009794]
[1641246185695,0.60439546,46101.0,46089.0,1.84629684]
[1641246185696,0.18,46094.0,46089.0,1.84629684]
[1641246185896,0.18,46094.0,46081.0,0.14033567]
[1641246186095,0.18,46094.0,46082.0,0.009794]
[1641246186295,0.00762451,46093.0,46082.0,0.009794]
[1641246186695,0.00762451,46092.0,46082.0,0.009794]
[1641246187395,0.00762451,46091.0,46082.0,0.009794]
[1641246187601,0.09055451,46091.0,46082.0,0.009794]
[1641246187796,0.08293,46091.0,46089.0,0.18]
[1641246187997,0.00597492,46090.0,46087.0,0.02169121]
[1641246188198,0.187,46092.0,46089.0,0.18]
[1641246188398,0.187,46092.0,46090.0,0.324534]
[1641246188597,0.187,46092.0,46088.0,0.009794]
[1641246188797,0.14033567,46101.0,46088.0,0.009794]
[1641246189297,0.00597405,46100.0,46088.0,0.008794]
[1641246189698,0.18597405,46100.0,46088.0,0.008794]
[1641246189898,0.27329405,46100.0,46088.0,0.008794]
[1641246190102,0.00597405,46099.0,46088.0,0.008794]
[1641246191300,0.00597405,46099.0,46089.0,0.18]
[1641246191501,0.19197405,46099.0,46089.0,0.18]
[1641246191804,0.19197405,46099.0,46090.0,0.324797]
[1641246192002,0.00597405,46098.0,46090.0,0.324797]
[1641246192203,0.09209405,46098.0,46090.0,0.324797]
[1641246192606,0.00597405,46097.0,46090.0,0.324797]
[1641246193705,0.19197405,46097.0,46090.0,0.324797]
[1641246194005,0.00597405,46096.0,46090.0,0.324797]